[Event "44th Chess Olympiad Open 2022"]
[Site "Chennai"]
[Date "2022.07.31"]
[Round "3.18"]
[White "Acs, Peter"]
[Black "Bilguun, Sumiya"]
[Result "0-1"]
[WhiteElo "2575"]
[BlackElo "2463"]
[Annotator "RC"]
[PlyCount "74"]
[EventDate "2022.??.??"]
[TimeControl "60"]

1. e4 {[%emt 0:00:30]} c5 {[%emt 0:00:30]} 2. Nf3 {[%emt 0:00:30]} d6 {[%emt 0:
00:00]} 3. d4 {[%emt 0:00:30]} cxd4 {[%emt 0:00:30]} 4. Nxd4 {[%emt 0:00:30]}
Nf6 {[%emt 0:00:30]} 5. Nc3 {[%emt 0:00:30]} a6 {[%emt 0:00:30]} 6. f4 {
[%emt 0:00:30]} e5 {[%emt 0:00:30]} 7. Nb3 {[%emt 0:00:30]} Nbd7 {[%emt 0:00:
00]} 8. a4 {[%emt 0:00:30]} Be7 {[%emt 0:00:30]} 9. Be2 {[%emt 0:00:30]} O-O {
[%emt 0:00:30]} 10. O-O {[%emt 0:00:30]} b6 {[%emt 0:00:30]} 11. Bf3 {[%emt 0:
00:00]} Bb7 {[%emt 0:00:30]} 12. Nd5 {[%emt 0:00:30]} Nxd5 {[%emt 0:00:30]} 13.
exd5 {[%emt 0:00:30]} Rc8 {[%emt 0:00:30]} 14. c3 {[%emt 0:00:30]} Bf6 {
[%emt 0:00:30]} 15. Be4 {[%emt 0:00:30]} g6 {[%emt 0:00:30]} 16. Qf3 {[%emt 0:
00:00]} exf4 {[%emt 0:00:30]} 17. Bxf4 {[%emt 0:00:30]} Be5 {[%emt 0:00:30]}
18. Be3 {[%emt 0:00:30]} f5 {[%emt 0:00:30]} 19. Bc2 {[%emt 0:00:30]} Qh4 {
[%emt 0:00:30]} 20. g3 {[%emt 0:00:30]} Qc4 {[%emt 0:00:30]} 21. Rad1 {[%emt 0:
00:00]} Nf6 {[%emt 0:00:30]} 22. Nc1 {[%emt 0:00:30]} b5 {[%emt 0:00:30]} 23.
Bb3 {[%emt 0:00:30]} Qe4 {[%emt 0:00:30]} 24. axb5 {[%emt 0:00:30]} axb5 {
[%emt 0:00:30]} 25. Nd3 {[%emt 0:00:30]} Bxd5 {[%emt 0:00:30]} 26. Nxe5 {
[%emt 0:00:30]} Bxb3 {[%emt 0:00:30]} 27. Qxe4 {[%emt 0:00:30]} Nxe4 {[%emt 0:
00:00]} 28. Nd7 {[%emt 0:00:30]} Bxd1 {[%emt 0:00:30]} 29. Nxf8 {[%emt 0:00:30]
} Be2 {[%emt 0:00:30]} 30. Re1 {[%emt 0:00:30]} Kxf8 {[%emt 0:00:30]} 31. Rxe2
{[%emt 0:00:30]} Ra8 {[%emt 0:00:30]} 32. g4 {[%emt 0:00:30]} Kg7 {[%emt 0:00:
00]} 33. gxf5 {[%emt 0:00:30]} gxf5 {[%emt 0:00:30]} 34. Kg2 {[%emt 0:00:30]}
Kg6 {[%emt 0:00:30]} 35. Kf3 {[%emt 0:00:30]} Rg8 {[%emt 0:00:30]} 36. Re1 {
[%emt 0:00:30]} Rg7 {[%emt 0:00:30]} 37. Rd1 {[%emt 0:00:30]} Rb7 {[%emt 0:00:
00]} 0-1

[Event "44th Chess Olympiad Open 2022"]
[Site "Chennai"]
[Date "2022.07.31"]
[Round "3.18"]
[White "Batsuren, Dambasuren"]
[Black "Erdos, Viktor"]
[Result "1/2-1/2"]
[WhiteElo "2518"]
[BlackElo "2586"]
[Annotator "ChessBase"]
[PlyCount "60"]
[EventDate "2022.??.??"]
[TimeControl "60"]

1. d4 {[%emt 0:00:30]} Nf6 {[%emt 1:31:00]} 2. c4 {[%emt 0:00:30]} g6 {[%emt 0:
00:00]} 3. g3 {[%emt 0:00:30]} c6 {[%emt 0:00:30]} 4. Bg2 {[%emt 0:00:30]} d5 {
[%emt 0:00:30]} 5. Qa4 {[%emt 0:00:30]} Nfd7 {[%emt 0:00:30]} 6. cxd5 {[%emt 0:
00:00]} Nb6 {[%emt 0:00:30]} 7. Qd1 {[%emt 0:00:30]} cxd5 {[%emt 0:00:30]} 8.
Nc3 {[%emt 0:00:30]} Nc6 {[%emt 0:00:30]} 9. e3 {[%emt 0:00:30]} Bf5 {[%emt 0:
00:00]} 10. Nh3 {[%emt 0:00:30]} h5 {[%emt 0:00:30]} 11. Nf4 {[%emt 0:00:30]}
e6 {[%emt 0:00:30]} 12. a3 {[%emt 0:00:30]} Rc8 {[%emt 0:00:30]} 13. h3 {
[%emt 0:00:30]} g5 {[%emt 0:00:30]} 14. Nxh5 {[%emt 0:00:30]} Bg6 {[%emt 0:00:
00]} 15. Bf3 {[%emt 0:00:30]} Be7 {[%emt 0:00:30]} 16. g4 {[%emt 0:00:30]} Bxh5
{[%emt 0:00:30]} 17. gxh5 {[%emt 0:00:30]} f5 {[%emt 0:00:30]} 18. Ne2 {
[%emt 0:00:30]} Nc4 {[%emt 0:00:30]} 19. b3 {[%emt 0:00:30]} Nd6 {[%emt 0:00:
00]} 20. Bd2 {[%emt 0:00:30]} Kf7 {[%emt 0:00:30]} 21. Nc1 {[%emt 0:00:30]} Ne4
{[%emt 0:00:30]} 22. Nd3 {[%emt 0:00:30]} Bf6 {[%emt 0:00:30]} 23. b4 {[%emt 0:
00:00]} Ne7 {[%emt 0:00:30]} 24. Bc1 {[%emt 0:00:30]} Nd6 {[%emt 0:00:30]} 25.
Be2 {[%emt 0:00:30]} Nc4 {[%emt 0:00:30]} 26. Qb3 {[%emt 0:00:30]} Qd6 {
[%emt 0:00:30]} 27. Nb2 {[%emt 0:00:30]} Rc7 {[%emt 0:00:30]} 28. Nd3 {[%emt 0:
00:00]} b6 {[%emt 0:00:30]} 29. Bf1 {[%emt 0:00:30]} a6 {[%emt 0:00:30]} 30. a4
{[%emt 0:00:30]} a5 {[%emt 0:00:30]} 1/2-1/2

[Event "44th Chess Olympiad Open 2022"]
[Site "Chennai"]
[Date "2022.07.31"]
[Round "3.18"]
[White "Gundavaa, Bayarsaikhan"]
[Black "Kantor, Gergely"]
[Result "1/2-1/2"]
[WhiteElo "2503"]
[BlackElo "2582"]
[Annotator "RC"]
[PlyCount "110"]
[EventDate "2022.??.??"]
[TimeControl "60"]

1. Nf3 {[%emt 0:00:05]} d5 {[%emt 0:00:32]} 2. e3 {[%emt 0:01:03]} Nf6 {
[%emt 0:02:31]} 3. c4 {[%emt 0:00:31]} e6 {[%emt 0:00:05]} 4. b3 {[%emt 0:00:
00]} a6 {[%emt 0:07:51]} 5. Bb2 {[%emt 0:04:14]} b6 {[%emt 0:00:34]} 6. g3 {
[%emt 0:11:29]} Bb7 {[%emt 0:03:46]} 7. Bg2 {[%emt 0:00:26]} Bd6 {[%emt 0:00:
00]} 8. O-O {[%emt 0:01:27]} O-O {[%emt 0:00:51]} 9. Nc3 {[%emt 0:03:14]} Nbd7
{[%emt 0:00:19]} 10. Rc1 {[%emt 0:05:19]} Re8 {[%emt 0:01:49]} 11. Qc2 {
[%emt 0:07:01]} Rc8 {[%emt 0:04:05]} 12. Rfd1 {[%emt 0:09:40]} c5 {[%emt 0:00:
00]} 13. cxd5 {[%emt 0:04:58]} Nxd5 {[%emt 0:00:55]} 14. Nxd5 {[%emt 0:11:49]}
Bxd5 {[%emt 0:02:22]} 15. d4 {[%emt 0:02:08]} Nf6 {[%emt 0:33:23]} 16. Qe2 {
[%emt 0:01:40]} cxd4 {[%emt 0:05:33]} 17. Nxd4 {[%emt 0:02:42]} Rxc1 {[%emt 0:
00:00]} 18. Rxc1 {[%emt 0:00:15]} Bxg2 {[%emt 0:01:37]} 19. Kxg2 {[%emt 0:00:
00]} Qa8+ {[%emt 0:00:29]} 20. Qf3 {[%emt 0:03:31]} Bc5 {[%emt 0:07:34]} 21.
Qxa8 {[%emt 0:08:47]} Rxa8 {[%emt 0:00:04]} 22. Nc6 {[%emt 0:00:05]} Nd5 {
[%emt 0:02:22]} 23. a3 {[%emt 0:02:12]} a5 {[%emt 0:01:23]} 24. e4 {[%emt 0:00:
00]} Nf6 {[%emt 0:02:55]} 25. f3 {[%emt 0:00:06]} Kf8 {[%emt 0:01:47]} 26. Kf1
{[%emt 0:00:46]} Rc8 {[%emt 0:02:28]} 27. Nxa5 {[%emt 0:08:14]} bxa5 {[%emt 0:
00:00]} 28. b4 {[%emt 0:00:03]} axb4 {[%emt 0:00:56]} 29. axb4 {[%emt 0:00:03]}
Nd7 {[%emt 0:01:03]} 30. bxc5 {[%emt 0:00:09]} Nb8 {[%emt 0:00:40]} 31. Be5 {
[%emt 0:01:30]} Nc6 {[%emt 0:00:30]} 32. Bd6+ {[%emt 0:00:18]} Ke8 {[%emt 0:00:
00]} 33. Rb1 {[%emt 0:01:20]} Na5 {[%emt 0:00:04]} 34. Rb4 {[%emt 0:02:23]} Kd7
{[%emt 0:00:17]} 35. Ke2 {[%emt 0:00:53]} Ra8 {[%emt 0:01:15]} 36. Kd3 {
[%emt 0:00:36]} Ra7 {[%emt 0:00:26]} 37. h4 {[%emt 0:03:43]} Nb7 {[%emt 0:00:
00]} 38. e5 {[%emt 0:00:43]} Ra3+ {[%emt 0:00:25]} 39. Ke4 {[%emt 0:00:11]} Na5
{[%emt 0:00:21]} 40. h5 {[%emt 0:00:25]} Ra1 {[%emt 0:01:02]} 41. g4 {[%emt 0:
00:00]} Ra3 {[%emt 0:10:05]} 42. Rb8 {[%emt 0:00:00]} Ra4+ {[%emt 0:04:59]} 43.
Ke3 {[%emt 0:00:00]} Nc4+ {[%emt 0:02:45]} 44. Kf2 {[%emt 0:00:00]} Ra2+ {
[%emt 0:10:13]} 45. Kg3 {[%emt 0:00:00]} Ne3 {[%emt 0:00:09]} 46. Rb7+ {
[%emt 0:00:00]} Kc6 {[%emt 0:00:08]} 47. Rxf7 {[%emt 0:00:00]} h6 {[%emt 0:00:
00]} 48. Kf4 {[%emt 0:00:00]} Nd5+ {[%emt 0:01:29]} 49. Ke4 {[%emt 0:00:00]}
Kb5 {[%emt 0:00:27]} 50. f4 {[%emt 0:00:00]} Kc4 {[%emt 0:00:29]} 51. f5 {
[%emt 0:00:00]} Rf2 {[%emt 0:00:22]} 52. fxe6 {[%emt 0:00:00]} Nc3+ {[%emt 0:
00:00]} 53. Ke3 {[%emt 0:00:00]} Nd1+ {[%emt 0:00:05]} 54. Ke4 {[%emt 0:00:00]}
Nc3+ {[%emt 0:00:08]} 55. Ke3 {[%emt 0:00:11]} Nd1+ {[%emt 0:00:05]} 1/2-1/2

[Event "44th Chess Olympiad Open 2022"]
[Site "Chennai"]
[Date "2022.07.31"]
[Round "3.19"]
[White "Parligras, Mircea-Emilian"]
[Black "Taher, Yoseph Theolifus"]
[Result "1-0"]
[WhiteElo "2576"]
[BlackElo "2463"]
[Annotator "RC"]
[PlyCount "71"]
[EventDate "2022.??.??"]
[TimeControl "60"]

1. d4 {[%emt 0:00:04]} d5 {[%emt 0:00:14]} 2. c4 {[%emt 0:00:11]} dxc4 {
[%emt 0:00:32]} 3. e3 {[%emt 0:00:13]} Nf6 {[%emt 0:00:20]} 4. Bxc4 {[%emt 0:
00:00]} e6 {[%emt 0:00:07]} 5. Nf3 {[%emt 0:00:10]} c5 {[%emt 0:00:07]} 6. O-O
{[%emt 0:00:15]} a6 {[%emt 0:00:08]} 7. Nc3 {[%emt 0:00:37]} b5 {[%emt 0:03:15]
} 8. Be2 {[%emt 0:00:29]} Bb7 {[%emt 0:00:16]} 9. dxc5 {[%emt 0:00:25]} Qxd1 {
[%emt 0:02:49]} 10. Rxd1 {[%emt 0:00:20]} Bxc5 {[%emt 0:00:05]} 11. Nd2 {
[%emt 0:00:36]} Be7 {[%emt 0:14:29]} 12. Nb3 {[%emt 0:05:08]} Nc6 {[%emt 0:00:
00]} 13. f3 {[%emt 0:05:26]} O-O {[%emt 0:03:14]} 14. e4 {[%emt 0:00:23]} Rfd8
{[%emt 0:11:59]} 15. Be3 {[%emt 0:00:51]} Rxd1+ {[%emt 0:00:00]} 16. Rxd1 Rd8 {
[%emt 0:00:50]} 17. Rxd8+ {[%emt 0:18:22]} Bxd8 {[%emt 0:00:04]} 18. Nc5 {
[%emt 0:02:04]} Bc8 {[%emt 0:00:05]} 19. a4 {[%emt 0:00:58]} b4 {[%emt 0:01:27]
} 20. Nb1 {[%emt 0:04:28]} Nb8 {[%emt 0:04:30]} 21. Nd2 {[%emt 0:01:26]} Nfd7 {
[%emt 0:01:46]} 22. Nc4 {[%emt 0:13:07]} e5 {[%emt 0:16:46]} 23. Nd3 {[%emt 0:
00:00]} Nc6 {[%emt 0:05:46]} 24. Nd6 {[%emt 0:00:54]} Nb6 {[%emt 0:03:16]} 25.
Kf1 {[%emt 0:16:41]} Bc7 {[%emt 0:11:19]} 26. Bxb6 {[%emt 0:01:34]} Bxd6 {
[%emt 0:00:04]} 27. Nc5 {[%emt 0:00:16]} Nb8 {[%emt 0:08:01]} 28. Bc4 {[%emt 0:
00:00]} a5 {[%emt 0:02:29]} 29. Ke2 {[%emt 0:02:44]} Kf8 {[%emt 0:02:57]} 30.
Bb5 {[%emt 0:02:48]} Ke7 {[%emt 0:01:05]} 31. Kd3 {[%emt 0:00:14]} f5 {[%emt 0:
00:00]} 32. Kc4 {[%emt 0:01:55]} fxe4 {[%emt 0:00:06]} 33. fxe4 {[%emt 0:03:10]
} Bg4 {[%emt 0:00:17]} 34. Bxa5 {[%emt 0:00:30]} Be2+ {[%emt 0:00:21]} 35. Kd5
{[%emt 0:00:50]} Bh5 {[%emt 0:00:20]} 36. Bd8+ {[%emt 0:00:13]} 1-0

[Event "44th Chess Olympiad Open 2022"]
[Site "Chennai"]
[Date "2022.07.31"]
[Round "3.19"]
[White "Priasmoro, Novendra"]
[Black "Lupulescu, Constantin"]
[Result "1/2-1/2"]
[WhiteElo "2494"]
[BlackElo "2628"]
[Annotator "RC"]
[PlyCount "60"]
[EventDate "2022.??.??"]
[TimeControl "60"]

1. e4 {[%emt 0:00:04]} c6 {[%emt 0:00:04]} 2. d4 {[%emt 0:00:17]} d5 {[%emt 0:
00:00]} 3. Nd2 {[%emt 0:00:12]} dxe4 {[%emt 0:00:05]} 4. Nxe4 {[%emt 0:00:05]}
Bf5 {[%emt 0:00:09]} 5. Ng3 {[%emt 0:00:26]} Bg6 {[%emt 0:00:11]} 6. Nf3 {
[%emt 0:00:52]} Nd7 {[%emt 0:01:14]} 7. h4 {[%emt 0:00:46]} h6 {[%emt 0:00:14]}
8. h5 {[%emt 0:00:29]} Bh7 {[%emt 0:00:05]} 9. Bd3 {[%emt 0:00:22]} Bxd3 {
[%emt 0:00:09]} 10. Qxd3 {[%emt 0:00:05]} e6 {[%emt 0:00:10]} 11. Bd2 {[%emt 0:
00:00]} Ngf6 {[%emt 0:00:23]} 12. O-O-O {[%emt 0:00:54]} Be7 {[%emt 0:00:18]}
13. Ne4 {[%emt 0:04:33]} Nxe4 {[%emt 0:00:33]} 14. Qxe4 {[%emt 0:00:07]} Nf6 {
[%emt 0:00:09]} 15. Qe2 {[%emt 0:00:35]} Qd5 {[%emt 0:00:19]} 16. c4 {[%emt 0:
00:00]} Qe4 {[%emt 0:00:04]} 17. Qxe4 {[%emt 0:05:00]} Nxe4 {[%emt 0:00:10]}
18. Be1 {[%emt 0:00:23]} Rd8 {[%emt 0:04:43]} 19. Ne5 {[%emt 0:03:03]} Bf6 {
[%emt 0:03:19]} 20. f3 {[%emt 0:10:53]} Nd6 {[%emt 0:00:40]} 21. Bf2 {[%emt 0:
00:00]} Bxe5 {[%emt 0:10:27]} 22. dxe5 {[%emt 0:00:07]} Nxc4 {[%emt 0:00:03]}
23. Rxd8+ {[%emt 0:00:07]} Kxd8 {[%emt 0:00:04]} 24. Bxa7 {[%emt 0:00:09]} Nxe5
{[%emt 0:10:46]} 25. Bd4 {[%emt 0:00:13]} f6 {[%emt 0:00:54]} 26. Bxe5 {
[%emt 0:00:09]} fxe5 {[%emt 0:00:08]} 27. Re1 {[%emt 0:00:05]} Ke7 {[%emt 0:00:
00]} 28. Rxe5 {[%emt 0:00:06]} Kf6 {[%emt 0:02:06]} 29. Re4 {[%emt 0:01:07]}
Rd8 {[%emt 0:01:46]} 30. Rf4+ {[%emt 0:01:34]} Ke7 {[%emt 0:00:18]} 1/2-1/2

[Event "44th Chess Olympiad Open 2022"]
[Site "Chennai"]
[Date "2022.07.31"]
[Round "3.19"]
[White "Ervan, Mohamad"]
[Black "Gavrilescu, David"]
[Result "1-0"]
[WhiteElo "2402"]
[BlackElo "2525"]
[Annotator "RC"]
[PlyCount "45"]
[EventDate "2022.??.??"]
[TimeControl "60"]

1. e4 {[%emt 0:00:08]} e6 {[%emt 0:00:23]} 2. d4 {[%emt 0:00:14]} d5 {[%emt 0:
00:00]} 3. Nd2 {[%emt 0:00:09]} c5 {[%emt 0:00:32]} 4. exd5 {[%emt 0:00:28]}
Qd7 {[%emt 0:00:30]} 5. d6 Qxd6 {[%emt 0:00:30]} 6. Ngf3 {[%emt 0:00:46]} Qd5 {
[%emt 0:00:44]} 7. Bc4 {[%emt 0:00:11]} cxd4 {[%emt 0:00:15]} 8. O-O {[%emt 0:
00:00]} Qd7 {[%emt 0:00:22]} 9. Nb3 {[%emt 0:00:14]} Nc6 {[%emt 0:00:12]} 10.
Re1 {[%emt 0:01:03]} a6 {[%emt 0:07:38]} 11. Bd2 {[%emt 0:00:45]} Bd6 {[%emt 0:
00:00]} 12. c3 {[%emt 0:00:24]} d3 {[%emt 0:17:38]} 13. a4 {[%emt 0:10:30]}
Nge7 {[%emt 0:03:46]} 14. Be3 {[%emt 0:06:43]} O-O {[%emt 0:07:04]} 15. Qxd3 {
[%emt 0:03:16]} Ng6 {[%emt 0:05:02]} 16. Red1 {[%emt 0:09:57]} Nge5 {[%emt 0:
00:00]} 17. Nxe5 {[%emt 0:00:52]} Nxe5 {[%emt 0:00:04]} 18. Bxe6 {[%emt 0:00:
00]} Qxe6 {[%emt 0:12:20]} 19. Qxd6 {[%emt 0:00:54]} Qxb3 {[%emt 0:03:43]} 20.
Qxe5 {[%emt 0:00:09]} Be6 {[%emt 0:00:43]} 21. Qg3 {[%emt 0:13:20]} f6 {
[%emt 0:03:07]} 22. Rd2 {[%emt 0:00:21]} Rad8 {[%emt 0:04:07]} 23. Bh6 {
[%emt 0:01:34]} 1-0

[Event "44th Chess Olympiad Open 2022"]
[Site "Chennai"]
[Date "2022.07.31"]
[Round "3.20"]
[White "Can, Emre"]
[Black "Stoyanov, Tsvetan"]
[Result "1-0"]
[WhiteElo "2606"]
[BlackElo "2450"]
[Annotator "RC"]
[PlyCount "97"]
[EventDate "2022.??.??"]
[TimeControl "60"]

1. d4 {[%emt 0:00:09]} Nf6 {[%emt 0:00:37]} 2. c4 {[%emt 0:00:16]} e6 {[%emt 0:
00:00]} 3. Nc3 {[%emt 0:00:17]} Bb4 {[%emt 0:01:54]} 4. Nf3 {[%emt 0:00:35]}
O-O {[%emt 0:13:58]} 5. Bg5 {[%emt 0:00:46]} d5 {[%emt 0:00:35]} 6. e3 {
[%emt 0:01:39]} h6 {[%emt 0:17:27]} 7. Bh4 {[%emt 0:01:15]} Nbd7 {[%emt 0:00:
00]} 8. cxd5 {[%emt 0:04:37]} exd5 {[%emt 0:01:00]} 9. Bd3 {[%emt 0:00:36]} c6
{[%emt 0:02:38]} 10. O-O {[%emt 0:03:17]} Re8 {[%emt 0:04:13]} 11. Qc2 {
[%emt 0:00:27]} Be7 {[%emt 0:01:44]} 12. Bg3 {[%emt 0:03:22]} Nf8 {[%emt 0:00:
00]} 13. h3 {[%emt 0:02:05]} Be6 {[%emt 0:05:06]} 14. Rab1 {[%emt 0:03:32]}
N8d7 {[%emt 0:08:32]} 15. b4 {[%emt 0:03:47]} Nb6 {[%emt 0:00:35]} 16. Rfd1 {
[%emt 0:11:33]} Bd6 {[%emt 0:02:59]} 17. Bxd6 {[%emt 0:14:12]} Qxd6 {[%emt 0:
00:00]} 18. a4 {[%emt 0:01:41]} Nbd7 {[%emt 0:03:47]} 19. Nd2 {[%emt 0:05:12]}
Re7 {[%emt 0:06:19]} 20. Rdc1 {[%emt 0:04:51]} g5 {[%emt 0:05:01]} 21. Ne2 {
[%emt 0:05:22]} Nh5 {[%emt 0:02:49]} 22. b5 {[%emt 0:04:05]} cxb5 {[%emt 0:00:
00]} 23. Rxb5 {[%emt 0:01:01]} Ndf6 {[%emt 0:00:36]} 24. Qb2 {[%emt 0:07:22]}
b6 {[%emt 0:02:26]} 25. Nf3 {[%emt 0:02:20]} Bd7 {[%emt 0:02:37]} 26. Rb4 {
[%emt 0:05:27]} g4 {[%emt 0:00:01]} 27. hxg4 {[%emt 0:00:33]} Nxg4 {[%emt 0:00:
00]} 28. Bb5 {[%emt 0:01:22]} Bf5 {[%emt 0:02:35]} 29. Rc6 {[%emt 0:00:38]} Qb8
{[%emt 0:00:26]} 30. Ne5 {[%emt 0:05:10]} Nxe5 {[%emt 0:03:29]} 31. dxe5 {
[%emt 0:00:07]} Bg6 {[%emt 0:00:19]} 32. Rd6 {[%emt 0:01:36]} Qf8 {[%emt 0:00:
00]} 33. Bc6 {[%emt 0:00:59]} Rd8 {[%emt 0:00:14]} 34. Rxd8 {[%emt 0:04:00]}
Qxd8 {[%emt 0:00:01]} 35. a5 {[%emt 0:01:47]} Qc7 {[%emt 0:01:14]} 36. axb6 {
[%emt 0:00:24]} axb6 {[%emt 0:00:09]} 37. Bxd5 {[%emt 0:01:09]} Rxe5 {[%emt 0:
00:00]} 38. Rc4 {[%emt 0:00:45]} Qe7 {[%emt 0:00:36]} 39. Rc8+ {[%emt 0:01:01]}
Kh7 {[%emt 0:00:00]} 40. f4 {[%emt 0:00:40]} Qd7 {[%emt 0:00:31]} 41. Rf8 {
[%emt 0:04:56]} Qxd5 {[%emt 0:07:42]} 42. Qxe5 {[%emt 0:00:37]} Qd1+ {[%emt 0:
00:00]} 43. Kf2 {[%emt 0:08:05]} Ng7 {[%emt 0:01:43]} 44. f5 {[%emt 0:00:41]}
Bh5 {[%emt 0:00:45]} 45. Ng3 {[%emt 0:00:07]} Qd2+ {[%emt 0:03:50]} 46. Kg1 {
[%emt 0:00:55]} Qe1+ {[%emt 0:00:08]} 47. Kh2 {[%emt 0:00:13]} Qb4 {[%emt 0:00:
00]} 48. Qb8 {[%emt 0:01:26]} Qh4+ {[%emt 0:01:56]} 49. Kg1 {[%emt 0:00:02]}
1-0

[Event "44th Chess Olympiad Open 2022"]
[Site "Chennai"]
[Date "2022.07.31"]
[Round "3.20"]
[White "Ali Marandi, Cemil Can"]
[Black "Georgiev, Todor"]
[Result "1-0"]
[WhiteElo "2561"]
[BlackElo "2272"]
[Annotator "RC"]
[PlyCount "55"]
[EventDate "2022.??.??"]
[TimeControl "60"]

1. e4 {[%emt 0:00:03]} c5 {[%emt 0:01:19]} 2. Nf3 {[%emt 0:00:12]} d6 {[%emt 0:
00:00]} 3. Bb5+ {[%emt 0:00:11]} Nd7 {[%emt 0:01:28]} 4. d4 {[%emt 0:00:34]}
cxd4 {[%emt 0:01:06]} 5. Nxd4 {[%emt 0:00:07]} Ngf6 {[%emt 0:02:00]} 6. O-O {
[%emt 0:00:21]} a6 {[%emt 0:03:47]} 7. Bd3 {[%emt 0:00:12]} g6 {[%emt 0:01:42]}
8. Re1 {[%emt 0:01:16]} Bg7 {[%emt 0:01:36]} 9. c4 {[%emt 0:02:59]} O-O {
[%emt 0:04:48]} 10. Nc3 {[%emt 0:00:15]} Nc5 {[%emt 0:06:29]} 11. Bf1 {[%emt 0:
00:00]} Ng4 {[%emt 0:02:48]} 12. h3 {[%emt 0:03:18]} Ne5 {[%emt 0:01:40]} 13.
Be3 {[%emt 0:01:09]} Nc6 {[%emt 0:16:51]} 14. Qd2 {[%emt 0:02:29]} Bd7 {
[%emt 0:10:31]} 15. Rad1 {[%emt 0:01:05]} Nxd4 {[%emt 0:15:26]} 16. Bxd4 {
[%emt 0:00:05]} Bxd4 {[%emt 0:01:13]} 17. Qxd4 {[%emt 0:00:03]} Bc6 {[%emt 0:
00:00]} 18. Qe3 {[%emt 0:08:22]} Na4 {[%emt 0:06:49]} 19. Nxa4 {[%emt 0:01:51]}
Bxa4 {[%emt 0:00:03]} 20. b3 {[%emt 0:00:10]} Bc6 {[%emt 0:00:05]} 21. e5 {
[%emt 0:04:08]} Qa5 {[%emt 0:00:37]} 22. exd6 {[%emt 0:01:26]} exd6 {[%emt 0:
00:00]} 23. Qd2 {[%emt 0:00:16]} Qa3 {[%emt 0:10:04]} 24. h4 {[%emt 0:03:16]}
Rfe8 {[%emt 0:05:30]} 25. h5 {[%emt 0:01:24]} Re5 {[%emt 0:01:14]} 26. h6 {
[%emt 0:02:31]} Rh5 {[%emt 0:02:04]} 27. Be2 {[%emt 0:01:29]} Rh4 {[%emt 0:00:
00]} 28. Qg5 {[%emt 0:00:38]} 1-0

[Event "44th Chess Olympiad Open 2022"]
[Site "Chennai"]
[Date "2022.07.31"]
[Round "3.20"]
[White "Petkov, Momchil"]
[Black "Yilmaz, Mustafa"]
[Result "0-1"]
[WhiteElo "2510"]
[BlackElo "2634"]
[Annotator "RC"]
[PlyCount "74"]
[EventDate "2022.??.??"]
[TimeControl "60"]

1. e4 {[%emt 0:00:08]} c5 {[%emt 0:00:04]} 2. Nf3 {[%emt 0:00:11]} d6 {[%emt 0:
00:00]} 3. Bb5+ {[%emt 0:00:14]} Nd7 {[%emt 0:00:06]} 4. Ba4 {[%emt 0:00:19]}
Ngf6 {[%emt 0:01:06]} 5. O-O {[%emt 0:00:22]} e6 {[%emt 0:03:48]} 6. d3 {
[%emt 0:00:21]} Be7 {[%emt 0:05:48]} 7. c4 {[%emt 0:00:11]} O-O {[%emt 0:00:15]
} 8. Nc3 {[%emt 0:00:17]} a6 {[%emt 0:03:43]} 9. Qe2 {[%emt 0:00:27]} Ng4 {
[%emt 0:19:49]} 10. Nd2 {[%emt 0:08:09]} Ngf6 {[%emt 0:07:28]} 11. f4 {[%emt 0:
00:00]} b5 {[%emt 0:00:03]} 12. Bc2 {[%emt 0:03:50]} Qb6 {[%emt 0:07:36]} 13.
b3 {[%emt 0:05:56]} Nb8 {[%emt 0:01:54]} 14. Nf3 {[%emt 0:04:47]} Nc6 {[%emt 0:
00:00]} 15. Kh1 {[%emt 0:03:56]} Bb7 {[%emt 0:01:32]} 16. Bd2 {[%emt 0:04:11]}
Nd4 {[%emt 0:03:02]} 17. Nxd4 {[%emt 0:00:44]} cxd4 {[%emt 0:00:02]} 18. Nd1 {
[%emt 0:00:28]} a5 {[%emt 0:02:41]} 19. Nf2 {[%emt 0:04:49]} Rfc8 {[%emt 0:00:
00]} 20. a4 {[%emt 0:17:34]} bxc4 {[%emt 0:04:11]} 21. bxc4 {[%emt 0:00:06]}
Bc6 {[%emt 0:02:42]} 22. Rfb1 {[%emt 0:05:20]} Qc7 {[%emt 0:00:51]} 23. Rb2 {
[%emt 0:04:00]} Nd7 {[%emt 0:01:04]} 24. Qh5 {[%emt 0:02:08]} Nc5 {[%emt 0:00:
00]} 25. f5 {[%emt 0:01:22]} exf5 {[%emt 0:03:42]} 26. Qxf5 {[%emt 0:03:17]}
Rcb8 {[%emt 0:02:17]} 27. Rab1 {[%emt 0:03:32]} Rxb2 {[%emt 0:00:28]} 28. Rxb2
{[%emt 0:00:03]} Nxa4 {[%emt 0:06:07]} 29. Bxa4 {[%emt 0:01:14]} Bxa4 {[%emt 0:
00:00]} 30. Ra2 {[%emt 0:05:23]} Bd7 {[%emt 0:01:21]} 31. Qd5 {[%emt 0:00:04]}
Rb8 {[%emt 0:00:43]} 32. g3 {[%emt 0:00:22]} a4 {[%emt 0:00:51]} 33. Qxd4 {
[%emt 0:00:30]} Bf6 {[%emt 0:01:23]} 34. Qd5 {[%emt 0:05:13]} Bc6 {[%emt 0:00:
00]} 35. Qf5 {[%emt 0:01:07]} Qb6 {[%emt 0:04:25]} 36. Rc2 {[%emt 0:06:12]} a3
{[%emt 0:00:00]} 37. Ng4 {[%emt 0:00:44]} Bd4 {[%emt 0:00:01]} 0-1